bitfinex/quotes_SOLUSD_20230120
["timestamp","ask_amount","ask_price","bid_price","bid_amount"]
[1674248222493,31.13,24.096,24.066,23.54568963]
[1674248222919,10.0,24.095,24.067,13.54568963]
[1674248223234,32.09,24.094,24.056,10.42]
[1674248223445,32.09,24.094,24.06,23.54568963]
[1674248223767,32.09,24.094,24.064,20.0]
[1674248223971,30.0,24.093,24.06,10.0]
[1674248224179,32.1,24.092,24.06,10.0]
[1674248224715,20.0,24.091,24.057,10.0]
[1674248224905,10.0,24.089,24.057,10.0]
[1674248225241,32.1,24.088,24.057,10.0]
[1674248225448,32.1,24.088,24.058,13.54568963]
[1674248225769,31.14,24.088,24.059,10.0]
[1674248225964,10.0,24.089,24.059,10.0]
[1674248226174,31.14,24.088,24.06,50.54568963]
[1674248226501,10.0,24.091,24.06,20.0]
[1674248226715,10.0,24.091,24.061,10.0]
[1674248227024,10.0,24.091,24.063,10.0]
[1674248227342,10.0,24.091,24.065,10.0]
[1674248227989,10.0,24.093,24.065,10.0]
[1674248228820,31.14,24.092,24.065,10.0]
[1674248229128,10.0,24.091,24.065,10.0]
[1674248229337,0.96,24.09,24.065,10.0]
[1674248229565,0.96,24.09,24.061,10.0]
[1674248229748,20.96,24.09,24.061,10.0]
[1674248229963,10.0,24.089,24.061,10.0]
[1674248230190,52.1,24.088,24.061,10.0]
[1674248230402,32.1,24.088,24.061,10.0]
[1674248230622,10.0,24.091,24.061,10.0]
[1674248230805,10.0,24.093,24.063,10.0]
[1674248231011,73.40784681,24.098,24.064,20.0]
[1674248231241,10.0,24.098,24.065,10.34]
[1674248231559,10.0,24.098,24.065,13.54568963]
[1674248231560,31.13,24.096,24.065,13.54568963]
[1674248231748,31.13,24.096,24.066,13.54568963]
[1674248231962,10.0,24.095,24.063,10.0]
[1674248232173,31.13,24.094,24.064,20.0]
[1674248232378,31.13,24.094,24.064,33.54568963]
[1674248232589,31.13,24.094,24.065,13.54568963]
[1674248232794,10.0,24.095,24.067,10.0]
[1674248233010,41.13,24.098,24.07,23.37]
[1674248233245,10.0,24.098,24.071,37.0]
[1674248233433,10.0,24.1,24.071,60.94568963]
[1674248233642,10.0,24.102,24.072,13.54568963]
[1674248233854,10.0,24.102,24.081,10.0]
[1674248234059,31.11,24.113,24.082,37.0]
[1674248234272,117.437,24.112,24.082,50.54568963]
[1674248234487,31.11,24.111,24.082,37.0]
[1674248234696,117.437,24.112,24.084,10.0]
[1674248234925,10.0,24.111,24.084,10.0]
[1674248235228,10.0,24.111,24.085,33.54568963]
[1674248235458,10.0,24.111,24.085,20.0]
[1674248235844,10.0,24.111,24.086,10.0]
[1674248236061,10.0,24.111,24.086,23.54568963]
[1674248236902,10.0,24.111,24.085,20.0]
[1674248237123,10.0,24.111,24.081,10.0]
[1674248237124,10.0,24.111,24.083,13.54568963]
[1674248237335,41.12,24.108,24.084,20.0]
[1674248237535,0.96,24.107,24.084,20.0]
[1674248237867,10.0,24.106,24.072,10.0]
[1674248238074,10.0,24.106,24.075,13.54568963]
[1674248238075,32.08,24.105,24.075,13.54568963]
[1674248238292,32.08,24.105,24.072,10.0]
[1674248238694,10.0,24.104,24.072,10.0]
[1674248238907,32.08,24.103,24.073,13.54568963]
[1674248239337,10.0,24.102,24.074,20.0]
[1674248239542,32.08,24.101,24.07,10.0]
[1674248239754,10.0,24.099,24.064,10.0]
[1674248240059,52.09,24.098,24.064,10.0]
[1674248240481,75.84576951,24.098,24.065,13.54568963]
[1674248240692,165.77493645,24.097,24.05,33.48]
[1674248240905,42.09,24.096,24.052,13.54568963]
[1674248241119,105.75736312,24.096,24.056,13.54568963]
[1674248241328,10.0,24.094,24.05,33.48]
[1674248241542,52.09,24.093,24.051,23.54568963]
[1674248241744,10.0,24.092,24.056,13.54568963]
[1674248241953,52.1,24.091,24.056,13.54568963]
[1674248242803,10.0,24.09,24.057,10.0]
[1674248243007,52.1,24.089,24.057,9.5]
[1674248243860,10.0,24.088,24.057,9.5]
[1674248244056,32.1,24.087,24.058,13.54568963]
[1674248244261,90.39420312,24.087,24.053,10.0]
[1674248244498,102.04997263,24.086,24.053,10.0]
[1674248244696,31.15,24.085,24.05,13.54568963]
[1674248244896,30.96,24.084,24.05,13.54568963]
[1674248245106,33.42954,24.083,24.05,13.54568963]
[1674248245316,33.24123,24.082,24.051,10.0]
[1674248245625,31.15,24.081,24.052,20.0]
[1674248245851,31.15,24.081,24.053,10.0]
[1674248246048,31.14,24.087,24.053,10.0]
[1674248246268,31.14,24.087,24.054,20.0]
[1674248246473,31.14,24.087,24.053,10.0]
[1674248246474,84.64997263,24.086,24.053,10.0]
[1674248246811,10.0,24.084,24.053,10.0]
[1674248246995,31.15,24.083,24.041,10.0]
[1674248247212,20.0,24.082,24.044,13.54568963]
[1674248247543,34.38954,24.081,24.041,10.0]
[1674248247732,32.28123,24.08,24.041,23.54568963]
[1674248247949,32.28123,24.08,24.041,10.0]
[1674248247950,32.11,24.079,24.041,10.0]
[1674248248151,91.11833645,24.079,24.041,10.0]
[1674248248380,10.0,24.078,24.041,10.0]
[1674248248590,32.12,24.077,24.041,10.0]
[1674248248916,10.0,24.076,24.041,10.0]
[1674248249219,10.0,24.074,24.041,10.0]
[1674248249423,32.12,24.073,24.041,10.0]
[1674248249633,111.39340672,24.073,24.041,23.54568963]
[1674248249845,95.23340672,24.072,24.041,23.54568963]
[1674248250163,10.0,24.071,24.041,10.0]
[1674248250410,31.16,24.07,24.041,10.0]
[1674248250613,10.0,24.069,24.041,10.0]
[1674248250928,31.17,24.068,24.041,10.0]
[1674248251115,0.96,24.067,24.035,10.0]
[1674248251326,94.74366672,24.067,24.035,10.0]
[1674248251646,31.17,24.066,24.043,10.0]
[1674248251861,0.96,24.065,24.043,10.0]
[1674248252057,31.17,24.066,24.043,10.0]
[1674248252267,0.96,24.065,24.035,10.0]
[1674248252813,10.96,24.065,24.043,10.0]
[1674248253034,10.96,24.065,24.035,10.0]
[1674248253425,135.91366672,24.065,24.035,10.0]
[1674248253638,10.0,24.064,24.035,10.0]
[1674248253868,0.96,24.063,24.035,10.0]
[1674248254287,0.96,24.063,24.043,10.0]
[1674248255333,0.96,24.063,24.036,10.0]
[1674248255542,31.18,24.062,24.036,10.0]
[1674248255745,30.96,24.061,24.012,25.89]
[1674248255960,33.45954,24.06,24.012,25.89]
[1674248256163,20.96,24.059,24.012,25.89]
[1674248256379,31.18,24.058,24.012,25.89]
[1674248256587,13.24123,24.057,24.029,8.0]
[1674248256808,31.18,24.056,24.029,8.0]
[1674248257014,0.96,24.055,24.029,8.0]
[1674248257327,31.19,24.054,24.029,8.0]
[1674248257543,31.18,24.056,24.029,8.0]
[1674248258259,10.0,24.055,24.029,8.0]
[1674248258693,31.19,24.054,24.029,8.0]
[1674248258912,31.18,24.056,24.029,8.0]
[1674248259313,0.96,24.055,24.029,8.0]
[1674248259537,31.19,24.054,24.029,8.0]
[1674248259749,0.96,24.053,24.029,8.0]
[1674248259965,31.19,24.052,24.029,8.0]
[1674248260163,0.96,24.051,24.029,8.0]
[1674248260905,31.18,24.06,24.03,23.44]
[1674248261224,31.17,24.068,24.031,20.0]
[1674248261432,10.0,24.067,24.033,10.0]
[1674248261654,31.17,24.066,24.034,20.0]
[1674248262051,10.0,24.067,24.034,20.0]
[1674248262477,10.0,24.067,24.035,27.0]
[1674248262703,10.0,24.067,24.036,20.0]
[1674248263105,10.0,24.065,24.037,10.0]
[1674248263441,10.0,24.067,24.037,10.0]
[1674248263851,10.0,24.067,24.038,17.0]
[1674248264056,41.16,24.071,24.038,17.0]
[1674248264057,10.0,24.071,24.04,23.48]
[1674248264376,120.6684,24.076,24.041,37.0]
[1674248264579,10.0,24.076,24.05,23.37]
[1674248264787,115.1982,24.077,24.051,37.0]
[1674248265220,115.1982,24.077,24.051,50.54568963]
[1674248265522,10.0,24.076,24.053,10.0]
[1674248265747,115.1982,24.077,24.054,20.0]
[1674248266572,115.1982,24.077,24.055,10.0]
[1674248266800,115.1982,24.077,24.056,20.0]
[1674248266998,10.0,24.076,24.057,10.0]
[1674248267202,10.0,24.076,24.056,20.0]
[1674248267407,10.0,24.076,24.05,23.37]
[1674248267638,31.16,24.075,24.043,10.0]
[1674248267850,30.66,24.075,24.043,10.0]
[1674248268049,23.75576951,24.074,24.043,10.0]
[1674248268265,31.16,24.073,24.038,13.54568963]
[1674248268467,10.0,24.071,24.039,10.0]
[1674248268683,17.96,24.07,24.039,10.0]
[1674248268895,31.17,24.069,24.039,10.0]
[1674248269209,17.96,24.068,24.039,10.0]
[1674248269418,10.0,24.067,24.032,10.0]
[1674248269626,17.96,24.066,24.032,10.0]
[1674248270266,17.96,24.066,24.032,23.54568963]
[1674248270454,17.96,24.066,24.034,25.79]
[1674248270999,17.0,24.066,24.032,10.0]
[1674248271214,17.0,24.066,24.038,36.5]
[1674248271404,10.0,24.069,24.039,10.0]
[1674248271611,10.0,24.069,24.039,23.54568963]
[1674248271825,10.0,24.069,24.04,13.54568963]
[1674248272034,31.17,24.068,24.04,13.54568963]
[1674248272476,31.17,24.068,24.039,10.0]
[1674248272477,33.75576951,24.067,24.039,10.0]
[1674248272678,33.38501,24.066,24.039,10.0]
[1674248272905,3.17701,24.065,24.039,10.0]
[1674248273124,31.17,24.064,24.039,10.0]
[1674248273324,10.96,24.063,24.039,10.0]
[1674248273536,10.96,24.063,24.034,10.0]
[1674248273537,31.18,24.062,24.034,10.0]
[1674248273742,20.96,24.061,24.034,10.0]
[1674248273959,31.18,24.06,24.037,23.54568963]
[1674248274277,31.17,24.066,24.038,13.54568963]
[1674248274491,31.17,24.068,24.039,10.0]
[1674248274708,10.0,24.067,24.039,10.0]
[1674248274895,10.0,24.067,24.04,13.54568963]
[1674248275536,10.0,24.067,24.039,10.0]
[1674248275762,33.38501,24.066,24.04,13.54568963]
[1674248275944,33.38501,24.066,24.036,10.0]
[1674248276153,33.38501,24.066,24.032,10.0]
[1674248276154,45.97277951,24.065,24.032,10.0]
[1674248276363,44.34957,24.064,24.032,10.0]
[1674248276587,23.48,24.06,24.023,10.0]
[1674248276807,34.36154,24.059,24.023,10.0]
[1674248277014,2.22349,24.058,24.025,9.5]
[1674248277335,10.0,24.056,24.025,9.5]
[1674248277658,32.14,24.055,24.025,9.5]
[1674248277836,10.0,24.054,24.027,10.0]
[1674248278172,32.15,24.053,24.027,10.0]
[1674248278393,10.0,24.052,24.027,10.0]
[1674248278588,0.96,24.051,24.027,10.0]
[1674248279319,31.18,24.055,24.027,23.54568963]
[1674248279513,31.18,24.062,24.027,23.54568963]
[1674248279724,43.75576951,24.061,24.027,10.0]
[1674248279930,33.40542,24.06,24.027,10.0]
[1674248280261,10.0,24.058,24.027,10.0]
[1674248280456,31.18,24.057,24.027,10.0]
[1674248280672,54.93576951,24.057,24.027,10.0]
[1674248280994,31.18,24.057,24.027,10.0]
[1674248281203,31.18,24.057,24.027,23.54568963]
[1674248281424,10.0,24.056,24.027,23.54568963]
[1674248281737,31.18,24.055,24.027,23.54568963]
[1674248281943,31.18,24.056,24.027,23.54568963]
[1674248282158,10.0,24.056,24.027,10.0]
[1674248282364,31.18,24.055,24.027,10.0]
[1674248282774,45.98118951,24.054,24.027,10.0]
[1674248282983,31.19,24.053,24.027,10.0]
[1674248283200,0.96,24.052,24.027,10.0]
[1674248283412,31.19,24.051,24.027,10.0]
[1674248283622,20.96,24.05,24.025,9.5]
[1674248283948,31.19,24.049,24.025,9.5]
[1674248284164,0.96,24.048,24.025,9.5]
[1674248284367,23.75576951,24.049,24.026,20.0]
[1674248284693,41.18,24.055,24.027,10.0]
[1674248285086,64.93576951,24.055,24.027,10.0]
[1674248285399,10.0,24.053,24.027,10.0]
[1674248285610,31.19,24.052,24.027,10.0]
[1674248285837,28.04385948,24.054,24.03,23.27]
[1674248286046,10.0,24.064,24.031,37.0]
[1674248286373,118.2665,24.063,24.032,10.0]
[1674248286554,118.2665,24.063,24.033,46.46]
[1674248286773,118.2665,24.063,24.035,10.0]
[1674248286980,118.2665,24.063,24.036,20.0]
[1674248287212,31.17,24.068,24.037,10.0]
[1674248287411,31.16,24.07,24.037,10.0]
[1674248287734,31.17,24.068,24.037,23.54568963]
[1674248288141,31.17,24.068,24.038,13.54568963]
[1674248288359,119.9183,24.071,24.039,27.0]
[1674248288568,119.9183,24.071,24.04,30.0]
[1674248288781,119.9183,24.071,24.041,43.45]
[1674248288990,119.9183,24.071,24.032,6.99568963]
[1674248289189,23.75576951,24.079,24.05,23.29]
[1674248289396,31.15,24.084,24.05,23.29]
[1674248289728,31.15,24.084,24.043,26.16]
[1674248289921,23.75576951,24.083,24.05,13.54568963]
[1674248290134,10.0,24.081,24.051,10.0]
[1674248290348,33.36501,24.082,24.052,20.0]
[1674248290349,31.15,24.08,24.052,20.0]
[1674248290553,31.15,24.082,24.052,20.0]
[1674248290768,10.0,24.083,24.053,10.0]
[1674248290988,31.15,24.082,24.054,20.0]
[1674248291183,31.15,24.082,24.055,10.0]
[1674248291394,31.15,24.082,24.056,20.0]
[1674248292045,10.0,24.081,24.057,10.0]
[1674248292444,17.0,24.08,24.057,10.0]
[1674248292682,17.0,24.081,24.057,10.0]
[1674248292876,10.0,24.081,24.057,10.0]
[1674248293080,10.0,24.079,24.057,10.0]
[1674248293301,17.96,24.078,24.057,10.0]
[1674248293725,10.0,24.081,24.057,22.68642186]
[1674248294142,10.0,24.083,24.057,22.68642186]
[1674248294671,10.0,24.083,24.057,10.0]
[1674248294862,54.90576951,24.082,24.053,10.0]
[1674248295078,17.0,24.081,24.032,6.99568963]
[1674248295294,64.32501,24.08,24.032,6.99568963]
[1674248295497,24.70929133,24.079,24.032,19.68211149]
[1674248295718,34.32899,24.078,24.032,19.68211149]
[1674248295934,19.22095,24.077,24.032,19.68211149]
[1674248296249,10.0,24.075,24.043,20.0]
[1674248296459,48.16,24.074,24.043,20.0]
[1674248296667,32.12,24.074,24.043,20.0]
[1674248296986,2.22095,24.076,24.05,23.27]
[1674248297181,2.22095,24.076,24.052,10.0]
[1674248297597,31.16,24.075,24.052,10.0]
[1674248297817,31.16,24.075,24.04,23.48]
[1674248298141,31.16,24.075,24.044,10.0]
[1674248298142,10.0,24.074,24.044,10.0]
[1674248298331,31.16,24.075,24.045,20.0]
[1674248298550,33.79155723,24.078,24.05,23.48]
[1674248298757,31.15,24.082,24.051,20.0]
[1674248298976,31.15,24.082,24.052,10.0]
[1674248299187,10.0,24.081,24.053,20.0]
[1674248299612,2.21501,24.08,24.052,10.0]
[1674248299826,31.15,24.079,24.052,10.0]
[1674248300014,10.0,24.077,24.052,10.0]
[1674248300223,32.12,24.076,24.052,10.0]
[1674248300670,10.0,24.075,24.052,10.0]
[1674248300858,32.12,24.074,24.052,10.0]
[1674248301280,0.96,24.074,24.052,10.0]
[1674248301486,0.96,24.076,24.052,10.0]
[1674248301702,31.15,24.08,24.053,20.0]
[1674248302019,151.0683,24.085,24.053,20.0]
[1674248302234,2.61826,24.082,24.053,20.0]
[1674248302437,2.61826,24.082,24.054,10.0]
[1674248302645,12.61826,24.082,24.055,20.0]
[1674248303277,2.61826,24.082,24.056,10.0]
[1674248303610,119.9183,24.085,24.057,20.0]
[1674248304007,119.9183,24.085,24.058,10.0]
[1674248304664,10.0,24.092,24.059,36.5]
[1674248304859,10.0,24.101,24.07,23.48]
[1674248304860,41.12,24.101,24.07,23.48]
[1674248305068,25.97077951,24.1,24.07,23.48]
[1674248305284,2.21501,24.1,24.08,23.44]
[1674248305489,31.11,24.114,24.08,23.44]
[1674248305700,2.61826,24.113,24.081,17.0]
[1674248305921,112.3269,24.127,24.081,17.0]
[1674248305922,143.4169,24.127,24.09,23.48]
[1674248306235,143.4169,24.127,24.1,23.27]
[1674248306450,143.3969,24.14,24.1,23.27]
[1674248306676,10.0,24.126,24.1,23.27]
[1674248307289,10.0,24.126,24.101,20.0]
[1674248307486,10.0,24.126,24.1,23.27]
[1674248307922,10.0,24.126,24.091,10.0]
[1674248308130,10.0,24.126,24.101,10.0]
[1674248308324,23.75576951,24.125,24.101,10.0]
[1674248308539,31.09,24.124,24.101,10.0]
[1674248308960,23.75576951,24.123,24.101,10.0]
[1674248309278,10.0,24.126,24.1,23.44]
[1674248309487,23.75576951,24.124,24.1,23.44]
[1674248309714,10.0,24.122,24.1,23.44]
[1674248310874,10.0,24.122,24.091,10.0]
[1674248310875,33.75576951,24.122,24.091,10.0]
[1674248311060,33.75576951,24.122,24.092,20.0]
[1674248311266,10.0,24.122,24.092,20.0]
[1674248311478,10.0,24.122,24.1,23.29]
[1674248312028,10.0,24.122,24.101,10.0]
[1674248312455,23.75576951,24.121,24.1,23.29]
[1674248312637,23.75576951,24.121,24.092,20.0]
[1674248312842,23.75576951,24.121,24.094,10.0]
[1674248313174,10.96,24.12,24.095,20.0]
[1674248313367,10.0,24.12,24.095,20.0]
[1674248313791,10.0,24.12,24.096,17.0]
[1674248314114,9.5,24.12,24.097,20.0]
[1674248314326,10.0,24.122,24.095,20.0]
[1674248314542,10.0,24.127,24.101,10.0]
[1674248314739,10.0,24.127,24.11,23.48]
[1674248314957,10.0,24.127,24.102,20.0]
[1674248315278,33.75576951,24.127,24.102,20.0]
[1674248315496,33.75576951,24.126,24.102,20.0]
[1674248315681,33.75576951,24.126,24.1,23.27]
[1674248315898,0.96,24.125,24.1,23.27]
[1674248316206,23.75576951,24.124,24.1,23.27]
[1674248316422,0.96,24.123,24.1,23.27]
[1674248316851,23.75576951,24.122,24.1,23.27]
[1674248317074,0.96,24.121,24.1,23.27]
[1674248317280,10.96,24.121,24.1,23.27]
[1674248317465,33.75576951,24.121,24.1,23.27]
[1674248317680,10.0,24.121,24.1,23.27]
[1674248318212,10.0,24.121,24.093,13.40170905]
[1674248318427,23.75576951,24.12,24.09,23.48]
[1674248318642,54.85576951,24.12,24.091,20.0]
[1674248318849,10.96,24.119,24.092,10.0]
[1674248319047,10.96,24.119,24.093,20.0]
[1674248319258,10.0,24.119,24.093,20.0]
[1674248319469,33.75576951,24.119,24.093,20.0]
[1674248320013,33.75576951,24.119,24.094,10.0]
[1674248320221,33.75576951,24.119,24.095,20.0]
[1674248320627,10.0,24.117,24.095,20.0]
[1674248320836,0.96,24.116,24.09,23.48]
[1674248321053,31.11,24.115,24.081,10.0]
[1674248321373,0.96,24.114,24.081,10.0]
[1674248321578,31.11,24.113,24.081,10.0]
[1674248321786,31.11,24.113,24.063,49.1466]
[1674248321787,0.96,24.112,24.07,23.37]
[1674248322003,41.11,24.111,24.07,23.37]
[1674248322214,0.96,24.11,24.076,13.40170905]
[1674248322410,31.11,24.109,24.076,13.40170905]
[1674248322620,31.11,24.109,24.08,23.27]
[1674248322851,10.0,24.111,24.09,23.48]
[1674248323879,10.0,24.112,24.091,10.0]
[1674248324214,41.1,24.123,24.1,23.48]
[1674248324433,10.0,24.123,24.1,23.48]
[1674248324947,10.0,24.123,24.101,20.0]
[1674248325264,10.0,24.123,24.1,23.48]
[1674248325489,10.0,24.123,24.096,13.40170905]
[1674248325713,41.1,24.123,24.097,33.40170905]
[1674248325916,10.0,24.122,24.098,10.0]
[1674248326230,10.0,24.117,24.098,10.0]
[1674248326445,17.96,24.116,24.098,10.0]
[1674248326842,10.0,24.117,24.098,10.0]
[1674248326843,10.0,24.117,24.099,13.40170905]
[1674248327468,10.0,24.117,24.091,10.0]
[1674248327713,31.11,24.116,24.087,13.40170905]
[1674248327904,10.0,24.115,24.087,13.40170905]
[1674248328120,31.11,24.114,24.08,23.27]
[1674248328311,17.96,24.113,24.083,13.40170905]
[1674248328524,10.0,24.115,24.09,23.44]
[1674248328734,10.0,24.115,24.091,10.0]
[1674248328954,31.11,24.114,24.091,10.0]
[1674248329171,31.11,24.114,24.091,23.40170905]
[1674248329382,10.0,24.115,24.091,23.40170905]
[1674248329703,31.11,24.114,24.082,9.5]
[1674248329887,27.96,24.113,24.083,20.0]
[1674248330092,31.11,24.112,24.083,26.8034181]
[1674248330325,0.96,24.111,24.082,9.5]
[1674248330535,31.11,24.11,24.082,9.5]
[1674248331058,27.96,24.109,24.082,9.5]
[1674248331266,31.12,24.108,24.083,33.40170905]
[1674248331463,112.3597,24.111,24.083,33.40170905]
[1674248331675,10.0,24.11,24.085,10.0]
[1674248332120,10.0,24.11,24.086,33.40170905]
[1674248332310,41.11,24.11,24.086,33.40170905]
[1674248332526,41.11,24.11,24.087,13.40170905]
[1674248332855,10.0,24.113,24.09,23.37]
[1674248333263,10.0,24.113,24.091,10.0]
[1674248333586,10.0,24.113,24.09,36.77170905]
[1674248333801,41.11,24.113,24.09,13.40170905]
[1674248333980,0.96,24.112,24.09,13.40170905]
[1674248334195,0.96,24.112,24.088,10.0]
[1674248334436,17.96,24.112,24.089,13.40170905]
[1674248334613,10.0,24.113,24.087,10.0]
[1674248334823,10.0,24.113,24.087,23.40170905]
[1674248335268,10.0,24.113,24.088,13.40170905]
[1674248336513,10.0,24.113,24.042,468.88224126]
[1674248336514,31.11,24.112,24.07,23.48]
[1674248336724,10.0,24.11,24.082,13.40170905]
[1674248336934,32.07,24.109,24.082,13.40170905]
[1674248337577,23.75576951,24.108,24.07,23.48]
[1674248337793,10.96,24.107,24.072,20.0]
[1674248337974,10.96,24.107,24.09,23.48]
[1674248338310,10.0,24.113,24.091,20.0]
[1674248338528,10.0,24.115,24.091,33.40170905]
[1674248338711,10.0,24.115,24.092,13.40170905]
[1674248338927,10.0,24.115,24.093,37.0]
[1674248339353,10.0,24.117,24.1,23.44]
[1674248339558,10.0,24.122,24.1,23.44]
[1674248339776,10.0,24.122,24.1,36.84170905]
[1674248339991,10.0,24.122,24.094,10.0]
[1674248340196,10.0,24.122,24.095,20.0]
[1674248340403,10.0,24.122,24.095,33.40170905]
[1674248340617,10.0,24.122,24.101,10.0]
[1674248340938,10.0,24.122,24.1,23.48]
[1674248341346,10.0,24.122,24.1,36.88170905]
[1674248341565,10.0,24.122,24.1,23.48]
[1674248342313,10.0,24.122,24.095,33.40170905]
[1674248342620,10.0,24.119,24.095,20.0]
[1674248342847,17.96,24.118,24.095,20.0]
[1674248343023,17.0,24.118,24.1,23.37]
[1674248343239,10.0,24.122,24.101,10.0]
[1674248343665,10.0,24.122,24.1,23.37]
[1674248343889,10.0,24.122,24.096,10.0]
[1674248344071,10.0,24.122,24.097,20.0]
[1674248344284,9.5,24.121,24.098,10.0]
[1674248344488,17.0,24.12,24.098,10.0]
[1674248345037,10.0,24.119,24.098,10.0]
[1674248345242,17.0,24.118,24.098,10.0]
[1674248345457,10.0,24.119,24.098,10.0]
[1674248346280,9.5,24.121,24.1,23.48]
[1674248346509,10.0,24.126,24.11,23.28]
[1674248347040,10.0,24.134,24.111,10.0]
[1674248347750,10.0,24.134,24.112,13.40170905]
[1674248348424,10.0,24.134,24.111,10.0]
[1674248348948,48.08,24.133,24.107,13.40170905]
[1674248349159,17.0,24.133,24.107,13.40170905]
[1674248349381,48.08,24.133,24.102,10.0]
[1674248349598,112.7353,24.132,24.103,20.0]
[1674248349796,48.09,24.131,24.103,33.40170905]
[1674248350007,0.96,24.13,24.103,20.0]
[1674248350224,0.96,24.13,24.104,23.40170905]
[1674248350537,10.96,24.13,24.104,10.0]
[1674248350852,41.09,24.129,24.1,22.98]
[1674248351066,0.96,24.128,24.1,22.98]
[1674248351253,31.09,24.127,24.1,22.98]
[1674248351459,10.96,24.126,24.101,10.0]
[1674248351679,31.09,24.125,24.101,10.0]
[1674248351892,0.96,24.124,24.101,10.0]
[1674248352115,31.1,24.123,24.101,10.0]
[1674248352319,0.96,24.122,24.101,10.0]
[1674248352532,10.0,24.127,24.101,10.0]
[1674248352757,10.0,24.129,24.101,10.0]
[1674248353056,10.0,24.131,24.102,33.40170905]
[1674248353369,31.08,24.138,24.11,23.48]
[1674248353588,41.08,24.139,24.11,23.48]
[1674248353891,41.08,24.139,24.111,30.0]
[1674248353892,2.00871,24.133,24.111,30.0]
[1674248354638,2.00871,24.133,24.112,13.40170905]
[1674248354845,2.00871,24.133,24.112,23.40170905]
[1674248355056,2.00871,24.133,24.113,20.0]
[1674248355370,31.07,24.147,24.113,19.5]
[1674248355782,10.0,24.14,24.114,10.0]
[1674248355989,31.08,24.139,24.114,10.0]
[1674248356193,41.07,24.14,24.114,10.0]
[1674248356831,41.07,24.14,24.11,23.48]
[1674248357054,41.07,24.14,24.11,13.40170905]
[1674248357275,41.07,24.14,24.1,23.48]
[1674248357454,41.07,24.14,24.11,23.28]
[1674248357793,10.0,24.14,24.11,23.28]
[1674248358107,31.08,24.139,24.11,23.28]
[1674248358291,31.08,24.139,24.11,36.68170905]